bitfinex/quotes_ETHUSD_20241101
["timestamp","ask_amount","ask_price","bid_price","bid_amount"]
[1730484391182,3.9787,2513.4,2513.0,0.07957753]
[1730484391671,3.97885,2513.3,2512.7,8.57609885]
[1730484391834,3.97885,2513.3,2512.8,3.97954]
[1730484392593,3.979,2513.2,2512.8,3.97954]
[1730484392752,3.97885,2513.3,2512.7,4.7719]
[1730484393081,3.9791,2513.2,2512.7,4.7719]
[1730484393971,3.9791,2513.2,2512.8,3.9796]
[1730484394270,3.97887,2513.3,2512.8,3.9796]
[1730484394575,3.97878,2513.4,2512.9,3.97945]
[1730484394893,7.95755,2513.4,2512.9,3.97945]
[1730484395238,3.97886,2513.3,2512.9,3.97945]
[1730484396765,3.97877,2513.4,2512.9,3.97945]
[1730484396963,3.97877,2513.4,2512.9,7.95883]
[1730484397197,3.97877,2513.4,2513.0,4.05880773]
[1730484398010,0.8278,2514.2,2513.3,3.80421885]
[1730484398180,3.97743,2514.2,2513.8,3.97801]
[1730484398497,0.8278,2514.5,2513.6,3.80421885]
[1730484398498,3.97775,2514.0,2513.6,7.78245885]
[1730484398662,4.773289,2514.0,2513.6,3.80421885]
[1730484398851,4.773289,2514.0,2513.5,4.78122]
[1730484398852,3.97794,2513.9,2513.5,4.78122]
[1730484399056,4.773289,2514.0,2513.6,3.97834]
[1730484399057,0.795539,2514.0,2513.6,3.97834]
[1730484399271,3.97757,2514.1,2513.6,3.97834]
[1730484399467,3.97776,2514.0,2513.5,8.75966]
[1730484399689,3.97772,2514.0,2513.5,4.78122]
[1730484399863,3.97772,2514.0,2513.5,8.75966]
[1730484400578,3.97772,2514.0,2513.5,4.78122]
[1730484400779,7.95525,2514.1,2513.6,3.97832]
[1730484401077,3.97772,2514.0,2513.6,3.97832]
[1730484402376,3.97794,2513.9,2513.5,0.8028]
[1730484402676,3.97772,2514.0,2513.5,0.8028]
[1730484403608,3.97772,2514.0,2513.5,4.7813]
[1730484404199,3.97772,2514.0,2513.6,4.05790446]
[1730484404571,3.97772,2514.0,2513.6,3.97835]
[1730484404771,3.9776,2514.1,2513.6,3.97827]
[1730484404972,3.97742,2514.2,2513.7,0.07955432]
[1730484405177,7.95494,2514.2,2513.8,0.7661]
[1730484405384,3.97742,2514.2,2513.8,0.7661]
[1730484405595,7.95494,2514.2,2513.8,0.7661]
[1730484406365,0.752,2514.7,2513.8,0.7661]
[1730484406604,3.97715,2514.4,2513.9,7.78201885]
[1730484407270,3.97715,2514.4,2513.9,11.75981885]
[1730484407507,3.97715,2514.4,2513.9,7.78201885]
[1730484407700,3.97729,2514.3,2513.9,7.78201885]
[1730484408007,7.95439,2514.4,2513.9,7.78201885]
[1730484408373,3.97728,2514.3,2513.9,7.78201885]
[1730484408574,3.97728,2514.3,2513.9,3.9778]
[1730484409575,3.97739,2514.3,2513.8,7.70708426]
[1730484409994,3.97739,2514.3,2513.9,3.97787]
[1730484410414,3.97705,2514.5,2513.9,5.14626243]
[1730484410580,3.97705,2514.5,2514.1,2.96295426]
[1730484410776,3.97705,2514.5,2514.2,0.833]
[1730484411111,3.97678,2514.6,2514.2,4.81039]
[1730484411309,3.97678,2514.6,2514.2,4.88992842]
[1730484411488,3.97662,2514.7,2514.2,2.09557269]
[1730484411809,3.97662,2514.7,2514.2,4.88987842]
[1730484411810,7.95335,2514.7,2514.2,4.88987842]
[1730484412013,3.97678,2514.6,2514.2,4.88987842]
[1730484412312,3.97678,2514.6,2513.9,1.16850243]
[1730484412313,3.97706,2514.5,2514.0,4.79522]
[1730484412992,3.97687,2514.6,2514.0,4.79522]
[1730484413320,3.97711,2514.4,2514.1,0.813]
[1730484413510,3.97696,2514.5,2514.1,0.813]
[1730484414723,0.07947378,2514.6,2514.1,0.813]
[1730484414929,3.97733,2514.3,2514.1,0.813]
[1730484415628,3.97733,2514.3,2514.1,0.713]
[1730484417933,3.9778,2514.0,2513.6,3.97828]
[1730484418104,3.97764,2514.1,2513.3,3.97883]
[1730484418303,3.97764,2514.1,2513.6,3.97835]
[1730484418526,3.97764,2514.1,2513.5,6.94134426]
[1730484418741,3.97764,2514.1,2513.6,4.76883]
[1730484419203,4.05711378,2514.1,2513.6,4.76883]
[1730484419393,4.05711378,2514.1,2513.6,0.7906]
[1730484419593,3.97757,2514.1,2513.6,4.76894]
[1730484419798,4.05704378,2514.1,2513.6,4.76894]
[1730484419999,3.97774,2514.0,2513.6,4.76894]
[1730484420927,3.97757,2514.1,2513.6,0.7906]
[1730484421228,4.05734378,2514.0,2513.4,0.8255]
[1730484421438,3.97763,2514.1,2513.5,4.05797147]
[1730484421660,3.9775,2514.2,2513.6,6.94124426]
[1730484421814,3.97718,2514.4,2513.9,6.94075426]
[1730484422135,3.97699,2514.5,2514.2,0.8325]
[1730484422708,3.97683,2514.6,2514.2,0.8325]
[1730484423106,3.97693,2514.5,2514.2,0.8325]
[1730484423293,0.8052,2514.8,2513.9,3.74753483]
[1730484423294,3.97745,2514.2,2513.9,3.74753483]
[1730484423491,3.97719,2514.4,2513.9,0.8325]
[1730484423725,4.05680378,2514.3,2513.9,4.81038]
[1730484423933,3.97733,2514.3,2513.9,4.81038]
[1730484424096,3.97719,2514.4,2514.0,3.9777]
[1730484424435,3.97689,2514.6,2514.0,3.9777]
[1730484424436,3.97689,2514.6,2514.2,3.97738]
[1730484424729,7.95377,2514.6,2514.2,0.80343982]
[1730484424929,3.97688,2514.6,2514.1,7.95501]
[1730484425133,4.05611378,2514.7,2514.2,4.05680002]
[1730484425338,4.05611378,2514.7,2514.3,4.79373]
[1730484425634,4.74009,2515.0,2514.4,3.97707]
[1730484425881,4.05584378,2514.9,2514.4,3.97707]
[1730484426036,3.97654,2514.8,2514.4,3.97706]
[1730484426243,4.05584378,2514.9,2514.3,0.8165]
[1730484426244,3.97677,2514.7,2514.3,0.8165]
[1730484426719,3.97647,2514.8,2514.3,4.79361]
[1730484427107,3.97647,2514.8,2514.4,3.97708]
[1730484427457,3.97643,2514.9,2514.4,3.97698]
[1730484427737,3.97643,2514.9,2514.4,5.22992564]
[1730484427936,3.9765,2514.8,2514.4,5.22992564]
[1730484428101,3.9765,2514.8,2514.4,5.15039443]
[1730484428500,3.97643,2514.9,2514.5,3.97691]
[1730484428833,4.05568378,2515.0,2514.6,3.97667]
[1730484429007,3.97598,2515.1,2514.7,0.8175]
[1730484429743,3.97621,2515.0,2514.7,0.8175]
[1730484432386,3.97637,2514.9,2514.7,0.8175]
[1730484432835,3.97614,2515.0,2514.7,0.8175]
[1730484433036,3.97598,2515.1,2514.7,0.8175]
[1730484433231,3.97616,2515.0,2514.7,0.8175]
[1730484434775,3.9763,2514.9,2514.7,0.8175]
[1730484434947,0.07947378,2515.0,2514.4,0.8325]
[1730484435152,3.97693,2514.5,2514.2,3.74705426]
[1730484435473,0.792,2514.9,2514.2,7.80391208]
[1730484435474,3.97669,2514.7,2514.2,7.80391208]
[1730484435641,3.97669,2514.7,2514.2,7.72437426]
[1730484435972,3.97678,2514.6,2514.2,5.99424869]
[1730484436179,3.97678,2514.6,2514.2,6.07378646]
[1730484436479,3.97654,2514.8,2514.3,3.97723]
[1730484436775,3.97675,2514.7,2514.2,9.97163869]
[1730484437438,3.97661,2514.7,2514.2,9.97163869]
[1730484437681,3.97681,2514.6,2514.2,9.97163869]
[1730484437980,3.97661,2514.7,2514.2,13.94892869]
[1730484438136,3.97661,2514.7,2514.3,2.47190287]
[1730484438339,7.95337,2514.7,2514.2,7.72434426]
[1730484438534,3.97681,2514.6,2514.2,7.72434426]
[1730484438977,3.9768,2514.6,2514.2,7.72434426]
[1730484439271,3.97663,2514.7,2514.3,4.0566747]
[1730484439482,3.97645,2514.8,2514.3,3.9772]
[1730484439660,3.97673,2514.7,2514.3,3.9772]
[1730484440237,3.9772,2514.4,2514.2,3.74705426]
[1730484440480,3.9772,2514.4,2513.9,3.9778]
[1730484440481,3.97767,2514.1,2513.7,0.7901]
[1730484440685,3.97756,2514.1,2513.7,0.7901]
[1730484440986,3.97797,2513.9,2513.6,2.96295426]
[1730484441186,3.97816,2513.8,2513.6,2.96295426]
[1730484441470,7.95632,2513.8,2513.5,0.7901]
[1730484441675,3.97816,2513.8,2513.5,0.7901]
[1730484441872,3.97797,2513.9,2513.5,0.7901]
[1730484442185,3.97813,2513.8,2513.5,0.7901]
[1730484442343,3.97835,2513.6,2513.4,0.41527732]
[1730484442675,3.97823,2513.7,2513.4,0.41527732]
[1730484443039,3.97795,2513.9,2513.4,1.23618725]
[1730484443235,3.97776,2514.0,2513.5,3.97844]
[1730484443441,3.97776,2514.0,2513.6,0.7806]
[1730484445290,0.82188192,2514.2,2513.9,2.96295426]
[1730484445453,2.87013524,2514.5,2514.0,0.7976]
[1730484445454,0.82188192,2514.5,2514.0,0.7976]
[1730484445648,4.79894192,2514.5,2514.0,4.85483173]
[1730484445876,3.97709,2514.4,2514.0,4.85483173]
[1730484446592,3.97727,2514.3,2514.0,0.7976]
[1730484447197,3.97709,2514.4,2514.0,0.7976]
[1730484447556,4.8783657,2514.5,2514.0,4.85486495]
[1730484447961,3.97709,2514.4,2514.0,4.85486495]
[1730484448590,0.82188192,2514.5,2514.1,3.97753]
[1730484448787,8.8551157,2514.6,2514.1,3.97753]
[1730484449090,8.77562192,2514.6,2514.1,3.97753]
[1730484449252,8.77562192,2514.6,2514.0,9.93252092]
[1730484449253,3.97701,2514.5,2514.0,9.93252092]
[1730484449672,4.79883192,2514.5,2514.1,3.97747]
[1730484449878,4.79883192,2514.5,2514.0,5.95480092]
[1730484450083,4.79883192,2514.5,2514.0,6.03434585]
[1730484450395,0.82188192,2514.5,2514.1,0.89973001]
[1730484450559,0.82188192,2514.5,2514.1,4.87722001]
[1730484452759,8.8550957,2514.6,2514.1,4.87722001]
[1730484452959,8.77562192,2514.6,2514.1,4.87722001]
[1730484453196,0.82188192,2514.6,2514.2,3.97731]
[1730484453409,4.79865192,2514.6,2514.2,3.97731]
[1730484454266,8.77550192,2514.6,2514.2,3.97731]
[1730484454714,4.79865192,2514.6,2514.2,3.97731]
[1730484455204,8.77552192,2514.6,2514.2,3.97731]
[1730484455578,3.97695,2514.5,2514.1,4.87729001]
[1730484455970,4.79865192,2514.6,2514.1,4.87729001]
[1730484456165,4.8781257,2514.6,2514.1,4.95683181]
[1730484456767,4.79865192,2514.6,2514.1,4.95683181]
[1730484457192,4.79865192,2514.6,2514.1,4.87729001]
[1730484457406,8.77556192,2514.6,2514.1,4.87729001]
[1730484457605,8.77553192,2514.6,2514.1,3.97756]
[1730484457809,4.79865192,2514.6,2514.1,3.97756]
[1730484457993,4.8781257,2514.6,2514.1,3.97756]
[1730484458577,8.8550057,2514.6,2514.1,3.97756]
[1730484458800,8.77553192,2514.6,2514.1,3.97756]
[1730484459187,4.79865192,2514.6,2514.1,3.97756]
[1730484459408,4.8781257,2514.6,2514.1,3.97756]
[1730484460592,3.97695,2514.5,2514.1,3.97756]
[1730484460927,4.79865192,2514.6,2514.1,3.97756]
[1730484461121,4.8781257,2514.6,2514.1,3.97756]
[1730484461276,4.79876192,2514.6,2514.2,3.97731]
[1730484461809,4.8782357,2514.6,2514.2,3.97731]
[1730484462412,3.97709,2514.4,2514.0,0.7976]
[1730484462616,3.97758,2514.1,2513.7,4.79129]
[1730484462830,3.9781,2513.8,2513.5,10.7701]
[1730484463040,3.97835,2513.6,2513.2,0.8131]
[1730484463325,0.07947378,2513.7,2513.2,4.792]
[1730484463326,4.05769378,2513.7,2513.2,4.792]
[1730484463617,3.97837,2513.6,2513.2,4.792]
[1730484464113,4.05784378,2513.6,2513.2,4.792]
[1730484464324,0.07947378,2513.6,2513.2,4.792]
[1730484464622,4.05782378,2513.6,2513.2,4.792]
[1730484465184,4.05782378,2513.6,2513.2,8.77092]
[1730484465387,3.97822,2513.7,2513.2,4.792]
[1730484465789,4.05769378,2513.7,2513.2,6.01490497]
[1730484465988,4.79989192,2513.9,2513.5,3.97839]
[1730484465989,3.97799,2513.9,2513.5,3.97839]
[1730484466220,0.82188192,2514.0,2513.6,7.73840426]
[1730484466424,4.8789857,2514.1,2513.6,7.73831426]
[1730484466585,3.97774,2514.0,2513.6,7.73831426]
[1730484467095,3.97789,2513.9,2513.6,3.76005426]
[1730484468408,8.03534378,2513.9,2513.6,3.76005426]
[1730484468610,3.97789,2513.9,2513.4,4.74686]
[1730484468831,3.97804,2513.8,2513.4,4.74686]
[1730484469256,0.07947378,2513.7,2513.3,6.94170426]
[1730484469731,4.05772378,2513.7,2513.3,6.94170426]
[1730484469903,3.97838,2513.6,2513.3,2.96295426]
[1730484470106,3.97861,2513.5,2513.3,2.96295426]
[1730484470352,3.97861,2513.5,2513.2,0.7683]
[1730484470353,4.05806378,2513.5,2513.1,0.41545168]
[1730484470639,0.07947378,2513.5,2513.1,0.41545168]
[1730484470983,3.97852,2513.5,2513.1,4.39458168]
[1730484471259,4.87045378,2513.7,2513.3,0.7954]
[1730484471260,3.97828,2513.7,2513.3,0.7954]
[1730484471422,4.05795378,2513.6,2513.3,0.7954]
[1730484471609,3.97859,2513.5,2513.1,5.19567168]
[1730484472033,4.05806378,2513.5,2513.1,0.8011]
[1730484472233,0.07947378,2513.5,2513.0,2.96295426]
[1730484472438,3.97915,2513.1,2512.8,0.7528]
[1730484473150,3.97948,2512.9,2512.7,2.96295426]
[1730484473306,4.05879378,2513.0,2512.7,2.96295426]
[1730484473731,0.7542,2513.1,2512.7,2.96295426]
[1730484473904,4.73337,2513.1,2512.7,2.96295426]
[1730484474108,4.81284378,2513.1,2512.7,2.96295426]
[1730484474304,3.97931,2513.0,2512.7,2.96295426]
[1730484474550,3.97895,2513.3,2512.7,8.19766255]
[1730484474759,4.05842378,2513.3,2512.8,3.97962]
[1730484475730,3.97901,2513.2,2512.7,8.11807069]
[1730484475925,3.97922,2513.1,2512.7,6.94273426]
[1730484476125,3.97901,2513.2,2512.7,6.94273426]
[1730484476366,3.97916,2513.1,2512.7,6.94273426]
[1730484476560,0.7674,2513.5,2512.7,2.96295426]
[1730484476725,3.97898,2513.3,2512.8,7.9591]
[1730484476927,3.97898,2513.3,2512.8,5.15480543]
[1730484477162,4.05845378,2513.3,2512.8,5.15478543]
[1730484477528,3.97901,2513.2,2512.8,5.15478543]
[1730484478776,3.97915,2513.1,2512.7,6.94271426]
[1730484479074,3.97901,2513.2,2512.7,6.94271426]
[1730484479368,4.05848378,2513.2,2512.7,6.94271426]
[1730484479743,3.97939,2513.0,2512.7,2.96295426]
[1730484480336,3.97947,2512.9,2512.7,2.96295426]
[1730484480547,3.97963,2512.8,2512.6,0.8305]
[1730484480749,3.97969,2512.8,2512.4,3.76725426]
[1730484481373,3.97969,2512.8,2512.4,7.74750426]
[1730484481549,4.78774,2513.0,2512.4,9.99725669]
[1730484481737,3.97944,2513.0,2512.6,3.97993]
[1730484482767,3.97948,2512.9,2512.5,4.39517488]
[1730484482980,0.87397378,2512.9,2512.5,0.41509488]
[1730484483155,3.97962,2512.8,2512.4,7.74746426]
[1730484483352,0.87397378,2512.9,2512.2,4.77095]
[1730484483353,0.07947378,2512.7,2512.2,4.77095]
[1730484483569,3.97986,2512.7,2512.2,5.90660623]
[1730484483769,3.97986,2512.7,2512.2,6.32174386]
[1730484484589,4.05933378,2512.7,2512.2,10.30224386]
[1730484484748,3.97986,2512.7,2512.2,10.30224386]
[1730484485283,3.97964,2512.8,2512.4,2.96295426]
[1730484485494,0.875354,2512.8,2512.2,1.20563763]
[1730484485656,3.98,2512.6,2512.2,5.18610763]
[1730484486023,3.97926,2513.1,2511.9,0.7624]
[1730484486024,3.98041,2512.3,2511.9,0.7624]
[1730484486142,0.83647378,2512.5,2511.7,0.83127205]
[1730484486143,3.98096,2512.0,2511.7,0.83127205]
[1730484486479,3.98073,2512.1,2511.7,0.7624]
[1730484486640,3.98089,2512.0,2511.7,0.7624]
[1730484486840,3.98079,2512.1,2511.7,5.15889712]
[1730484487072,3.9809,2512.0,2511.7,1.17756712]
[1730484487278,3.98074,2512.1,2511.7,4.74375]
[1730484487484,3.98065,2512.2,2511.7,0.84202273]
[1730484487689,4.06012378,2512.2,2511.8,2.96295426]
[1730484488180,4.06012378,2512.2,2511.7,9.1054177]
[1730484488181,0.07947378,2512.2,2511.7,0.7624]
[1730484488394,3.98136,2511.7,2511.4,0.8312]
[1730484488556,0.07947378,2511.6,2511.2,7.77623426]
[1730484488759,4.06083378,2511.7,2511.2,8.61612247]
[1730484488954,4.06083378,2511.7,2511.2,4.63406247]
[1730484489284,4.06086378,2511.7,2511.3,3.98192]
[1730484489579,3.98122,2511.8,2511.4,3.98183]
[1730484489797,7.96195,2512.0,2511.5,6.94454426]
[1730484489997,3.98132,2511.8,2511.3,3.98199]
[1730484490184,0.07947378,2511.7,2511.2,7.77621426]
[1730484490390,3.98153,2511.6,2511.2,7.77621426]
[1730484490569,0.07947378,2511.5,2511.2,3.79415426]
[1730484490774,4.06124378,2511.5,2511.2,3.79415426]
[1730484490967,3.98155,2511.6,2511.2,3.79415426]
[1730484491168,3.98132,2511.8,2511.3,3.98193]
[1730484491366,4.06084378,2511.7,2511.2,8.95207569]
[1730484491590,0.07947378,2511.7,2511.2,8.95207569]
[1730484491901,4.06059378,2511.9,2511.2,4.97003569]
[1730484492067,3.98073,2512.1,2511.7,0.7699]
[1730484492274,0.7804,2512.4,2511.7,1.54133543]
[1730484492475,4.05997378,2512.3,2511.9,2.96295426]
[1730484492687,4.05997378,2512.3,2511.9,6.94392426]
[1730484492886,0.07947378,2512.3,2511.9,6.94392426]
[1730484493301,3.97989,2512.7,2512.2,6.94340426]
[1730484493469,7.95766,2513.3,2512.2,2.96295426]
[1730484493470,3.98012,2512.5,2512.2,2.96295426]
[1730484493795,4.05980378,2512.4,2512.0,0.803]
[1730484493997,4.05980378,2512.4,2511.9,2.96295426]
[1730484493998,3.98068,2512.2,2511.9,2.96295426]
[1730484494295,4.75179,2512.3,2511.9,2.96295426]
[1730484494683,0.07947378,2512.2,2511.9,2.96295426]
[1730484494888,4.75179,2512.3,2511.9,4.13579669]
[1730484495388,0.7713,2512.3,2511.7,0.803]
[1730484495589,3.98084,2512.1,2511.7,0.803]
[1730484495894,3.9808,2512.1,2511.7,0.803]
[1730484496109,4.06027378,2512.1,2511.7,0.803]
[1730484496400,3.98102,2512.0,2511.5,4.77707]
[1730484496601,0.07947378,2511.9,2511.5,4.77707]
[1730484496775,0.07947378,2511.9,2511.6,3.98151]
[1730484496971,3.98098,2512.0,2511.5,8.75866]
[1730484497177,3.98098,2512.0,2511.5,4.77699]
[1730484497389,0.07947378,2512.1,2511.7,3.98126]
[1730484497762,0.07947378,2512.1,2511.6,2.96295426]
[1730484497988,3.98037,2512.4,2511.7,4.06088901]
[1730484498288,3.9806,2512.2,2511.8,3.98105]
[1730484498513,3.98026,2512.4,2512.0,4.75765]
[1730484498694,3.98018,2512.5,2512.0,4.75765]
[1730484498695,4.05989378,2512.3,2512.0,0.7768]
[1730484498896,4.86390716,2512.3,2511.9,2.96295426]
[1730484499199,3.98065,2512.2,2511.7,7.96254]
[1730484499511,0.07947378,2512.2,2511.8,3.98117]
[1730484499803,4.05985378,2512.4,2511.9,6.94398426]
[1730484499973,4.05974378,2512.4,2511.9,6.94391426]
[1730484500174,4.05974378,2512.4,2512.0,3.98088]
[1730484500476,4.05974378,2512.4,2511.9,6.94391426]
[1730484500787,4.05995378,2512.3,2511.9,2.96295426]
[1730484500987,4.05995378,2512.3,2511.8,3.98114]
[1730484500988,3.98059,2512.2,2511.7,3.98126]
[1730484501292,4.06021378,2512.1,2511.7,3.98126]
[1730484501778,4.77819,2512.2,2511.8,3.98114]
[1730484501992,0.7976,2512.2,2511.8,3.98114]
[1730484502178,4.05990378,2512.3,2511.9,3.75919426]
[1730484502383,8.04045378,2512.3,2511.9,2.96295426]
[1730484502578,3.98043,2512.3,2511.9,2.96295426]
[1730484502778,0.07947378,2512.2,2511.9,6.94395426]
[1730484502998,3.98028,2512.4,2512.0,3.98087]
[1730484503198,0.7635,2512.5,2512.0,0.7681]
[1730484503404,3.98048,2512.3,2512.0,0.7681]
[1730484503684,4.05995378,2512.3,2511.9,2.96295426]
[1730484503900,3.98072,2512.2,2511.9,2.96295426]
[1730484504109,0.07947378,2512.1,2511.6,6.94444426]
[1730484504277,3.98091,2512.0,2511.6,6.94444426]
[1730484504601,4.06038378,2512.0,2511.6,3.98147]
[1730484504808,3.98028,2512.4,2511.5,5.16488292]
[1730484504809,3.98113,2511.9,2511.5,8.12783718]
[1730484505110,0.07947378,2512.1,2511.6,3.98151]
[1730484505111,3.9809,2512.0,2511.6,3.98151]
[1730484505412,3.98073,2512.1,2511.7,3.98135]
[1730484505616,4.06020378,2512.1,2511.7,3.98135]
[1730484505819,3.98073,2512.1,2511.7,3.98135]
[1730484506322,3.98049,2512.3,2511.9,0.7893]
[1730484506482,0.07947378,2512.2,2511.9,0.7893]
[1730484506976,0.07947378,2512.2,2511.8,6.94405426]
[1730484507184,4.06006378,2512.2,2511.8,6.94405426]
[1730484508818,0.07947378,2512.2,2511.8,6.94405426]
[1730484508979,4.06012378,2512.2,2511.8,8.23774266]
[1730484509402,0.07947378,2512.2,2511.8,4.25664266]
[1730484509582,3.97962,2512.8,2511.9,4.75093]
[1730484509792,3.98032,2512.4,2511.9,8.73183]
[1730484510117,3.98032,2512.4,2511.9,4.7509]
[1730484510118,7.96065,2512.4,2511.9,4.7509]
[1730484510988,3.98032,2512.4,2511.9,8.73185]
[1730484511221,7.96068,2512.4,2511.9,4.7509]
[1730484511514,3.98044,2512.3,2511.9,5.92040943]
[1730484511692,0.8058,2512.9,2511.9,1.93950943]
[1730484512021,3.98056,2512.3,2511.9,4.75101]
[1730484513715,7.96106,2512.3,2511.9,4.75101]
[1730484513923,3.9805,2512.3,2511.9,4.75101]
[1730484514583,7.96103,2512.3,2511.9,0.77]
[1730484514812,7.96103,2512.3,2511.9,4.75104]
[1730484514813,3.9805,2512.3,2511.9,4.75104]
[1730484515583,7.96102,2512.3,2511.9,4.75104]
[1730484515789,3.98062,2512.2,2511.9,0.77]
[1730484516095,3.9805,2512.3,2511.9,0.77]
[1730484516300,7.96106,2512.3,2511.9,0.77]
[1730484516502,3.9805,2512.3,2511.9,0.77]
[1730484516699,3.98058,2512.2,2511.9,0.77]
[1730484518387,3.98099,2512.0,2511.7,0.7683]
[1730484518589,3.98098,2512.0,2511.7,0.7683]
[1730484519229,3.98112,2511.9,2511.7,0.7683]
[1730484521332,0.07947378,2511.9,2511.5,1.19409292]
[1730484521713,3.9812,2511.8,2511.5,1.19409292]
[1730484521912,3.9812,2511.8,2511.5,0.7789]
[1730484523501,4.06055378,2511.9,2511.5,0.7789]
[1730484524407,7.96221,2511.9,2511.5,0.7789]
[1730484524998,3.9812,2511.8,2511.5,0.7789]
[1730484525530,3.98143,2511.7,2511.5,0.7789]
[1730484525732,3.9812,2511.8,2511.5,0.7789]
[1730484526039,3.98116,2511.9,2511.5,0.7789]
[1730484526226,4.06070378,2511.8,2511.5,0.7789]
[1730484526431,3.98123,2511.8,2511.5,0.7789]
[1730484527128,3.98139,2511.7,2511.5,0.7789]
[1730484527337,3.98139,2511.7,2511.2,3.76665426]
[1730484527338,3.98181,2511.5,2511.2,3.76665426]
[1730484527540,3.98187,2511.4,2511.2,3.76665426]
[1730484528420,3.982,2511.3,2511.2,2.96295426]
[1730484528619,3.98152,2511.6,2511.2,2.96295426]
[1730484528867,3.98175,2511.5,2511.2,2.96295426]
[1730484529156,3.98152,2511.6,2511.2,2.96295426]
[1730484529319,3.98164,2511.6,2511.2,2.96295426]
[1730484529516,3.98175,2511.5,2511.2,2.96295426]
[1730484530160,3.98164,2511.6,2511.2,6.94508426]
[1730484530476,3.98164,2511.6,2511.2,2.96295426]
[1730484530624,4.06120378,2511.5,2511.2,2.96295426]
[1730484530821,0.8075,2511.4,2510.9,2.96295426]
[1730484531027,3.98242,2511.1,2510.7,1.37736081]
[1730484531270,0.07947378,2511.3,2510.7,0.7544]
[1730484531271,3.98255,2511.0,2510.7,0.7544]
[1730484531424,3.98268,2510.9,2510.7,0.7544]
[1730484531934,3.98279,2510.8,2510.6,2.96295426]
[1730484532132,3.98295,2510.7,2510.4,0.783]
[1730484532363,0.771,2511.0,2510.3,2.96295426]
[1730484532364,4.06272378,2510.6,2510.3,2.96295426]
[1730484532561,8.04597378,2510.6,2510.3,2.96295426]
[1730484532859,7.9665,2510.6,2510.3,2.96295426]
[1730484533159,7.9665,2510.6,2510.2,0.1233121]
[1730484533160,3.98354,2510.4,2510.2,0.1233121]
[1730484533363,4.06305378,2510.3,2510.2,0.1233121]
[1730484535783,3.98485,2509.5,2509.4,0.005]
[1730484536111,7.81482378,2509.5,2509.4,0.005]
[1730484536245,7.73535,2509.5,2509.4,0.005]
[1730484536570,8.907357,2509.5,2509.4,0.005]
[1730484537447,4.73535,2509.5,2509.4,0.005]
[1730484537669,4.81482378,2509.5,2509.4,0.005]
[1730484538049,3.98412,2510.0,2509.4,0.005]
[1730484538050,0.07947378,2509.7,2509.4,0.005]
[1730484538245,0.07947378,2509.8,2509.4,3.99001]
[1730484538447,0.07947378,2509.8,2509.6,2.96295426]
[1730484538672,9.42973545,2511.0,2509.6,2.96295426]
[1730484538673,0.07947378,2510.1,2509.8,3.98436]
[1730484538875,0.07947378,2510.3,2510.0,2.96295426]
[1730484539324,0.07947378,2510.3,2510.0,6.94691426]
[1730484539478,4.75715,2510.7,2510.0,6.94691426]
[1730484539479,4.06262378,2510.6,2510.0,6.94691426]
[1730484539818,0.07947378,2510.6,2510.3,2.96295426]
[1730484540409,0.07947378,2510.8,2510.3,2.96295426]
[1730484540707,0.07947378,2510.6,2510.3,2.96295426]
[1730484541616,0.07947378,2510.7,2510.3,2.96295426]
[1730484542118,4.06245378,2510.7,2510.3,2.96295426]
[1730484542274,8.04549378,2510.7,2510.3,2.96295426]
[1730484542472,7.96602,2510.7,2510.3,2.96295426]
[1730484542709,0.07947378,2510.6,2510.1,7.78767621]
[1730484542906,0.07947378,2510.6,2510.1,9.04264097]
[1730484543116,0.07947378,2510.6,2510.3,3.98356]
[1730484543296,0.07947378,2510.8,2510.3,7.96712]
[1730484543701,0.07947378,2510.8,2510.3,3.98356]
[1730484543902,0.07947378,2510.8,2510.1,5.05889097]
[1730484543903,0.07947378,2510.8,2510.1,9.04268097]
[1730484544105,0.07947378,2510.8,2510.2,0.9042681]
[1730484544428,4.74262,2510.6,2509.9,3.98411]
[1730484544602,4.06283378,2510.5,2509.9,7.96824]
[1730484544914,4.06283378,2510.5,2509.9,3.98411]
[1730484545284,0.07947378,2510.5,2510.0,3.98397]
[1730484545510,0.07947378,2510.5,2509.9,3.98411]
[1730484545682,4.06274378,2510.5,2509.9,0.85533362]
[1730484545881,3.98342,2510.4,2509.8,8.55359621]
[1730484546119,4.06309378,2510.3,2509.8,4.56922621]
[1730484546342,3.98391,2510.1,2509.5,4.55962621]
[1730484546544,3.98425,2509.9,2509.5,3.80392621]
[1730484546707,3.98343,2510.4,2509.7,3.98453]
[1730484546902,0.07947378,2510.3,2509.8,4.55962621]
[1730484547104,0.07947378,2510.3,2509.9,3.98419]
[1730484547645,0.07947378,2510.3,2509.9,3.98414]
[1730484548709,4.06307378,2510.3,2509.8,8.54389621]
[1730484548909,4.06307378,2510.3,2509.8,4.55962621]
[1730484549238,4.06307378,2510.3,2509.7,3.9844]
[1730484549239,4.47802258,2510.2,2509.7,7.96884]
[1730484549441,0.07947378,2510.1,2509.8,7.78823621]
[1730484549649,0.07947378,2510.2,2509.9,3.98419]
[1730484549816,3.98362,2510.3,2509.9,3.98419]
[1730484550016,0.07947378,2510.2,2509.8,3.80392621]
[1730484550335,0.07947378,2510.2,2509.8,7.78821621]
[1730484550527,0.07947378,2510.2,2509.9,3.98414]
[1730484550746,0.07947378,2510.4,2510.1,3.80392621]
[1730484550949,4.55136916,2510.4,2510.1,3.80392621]
[1730484551245,4.55128916,2510.4,2509.8,3.80392621]
[1730484551449,3.9837,2510.3,2509.8,3.80392621]
[1730484551619,0.07947378,2510.2,2509.8,3.80392621]
[1730484551816,0.07947378,2510.3,2509.9,3.98412]
[1730484552137,0.07947378,2510.3,2509.9,7.96825]
[1730484552439,4.06306378,2510.3,2509.8,7.78828621]
[1730484552641,0.40630638,2510.2,2509.8,7.78828621]
[1730484552844,0.40630638,2510.2,2509.8,3.80392621]
[1730484553146,3.98445,2509.8,2509.5,3.80392621]
[1730484553450,0.07947378,2509.7,2509.4,0.7861]
[1730484553613,0.07947378,2509.6,2509.4,0.7861]
[1730484554448,0.07947378,2509.7,2509.4,0.7861]